bitfinex/quotes_ETHUSD_20250620
["timestamp","ask_amount","ask_price","bid_price","bid_amount"]
[1750408270640,0.2189195,2558.7,2558.4,0.0453]
[1750408270976,0.21893118,2558.6,2558.5,3.90852941]
[1750408271181,0.21893118,2558.6,2558.5,3.90854016]
[1750408271480,0.21893118,2558.6,2558.5,3.95384016]
[1750408271666,6.685,2558.8,2558.5,3.99292079]
[1750408271871,0.21889255,2558.7,2558.6,0.03908059]
[1750408272045,0.58371083,2558.7,2558.4,3.90867323]
[1750408272251,0.21889255,2558.6,2558.5,3.99277417]
[1750408272452,0.58371824,2558.6,2558.5,3.99277417]
[1750408272652,0.58378673,2558.6,2558.5,3.94747417]
[1750408272876,0.58378689,2558.6,2558.5,0.03907951]
[1750408273049,6.90292002,2558.6,2558.0,4.78030002]
[1750408273392,4.12754749,2558.5,2558.0,3.90923964]
[1750408273550,0.21895145,2558.4,2557.9,3.90943672]
[1750408273748,8.534,2558.8,2558.4,3.90860504]
[1750408273965,0.21893238,2558.7,2558.5,0.0453]
[1750408274282,0.21893238,2558.6,2558.5,0.0453]
[1750408274480,0.21893238,2558.6,2558.5,3.95384016]
[1750408274660,0.21889739,2558.6,2558.5,0.0453]
[1750408274845,0.21889739,2558.6,2558.4,3.90861227]
[1750408275050,0.21890069,2558.5,2558.4,3.90862502]
[1750408275252,0.21890069,2558.5,2558.3,3.90873938]
[1750408275583,0.21890069,2558.5,2558.0,0.8707]
[1750408275584,0.21890069,2558.4,2558.2,3.90887316]
[1750408275783,0.21893638,2558.3,2558.2,3.90887316]
[1750408275986,0.21893638,2558.3,2558.1,3.90906639]
[1750408276304,0.2189391,2558.2,2558.0,4.77993042]
[1750408276593,6.695,2558.5,2558.1,3.90907573]
[1750408276772,0.21894667,2558.4,2558.2,3.90898976]
[1750408276970,0.21894667,2558.3,2558.2,3.90898976]
[1750408277171,0.21894667,2558.3,2558.1,3.90907061]
[1750408277484,0.21894477,2558.2,2558.1,3.90907061]
[1750408277654,0.21894477,2558.4,2558.2,3.90896993]
[1750408277854,0.21894477,2558.3,2558.2,3.90896993]
[1750408278046,0.21894477,2558.4,2558.2,3.90896993]
[1750408278387,0.21894477,2558.3,2558.1,3.90915132]
[1750408278550,0.21894477,2558.4,2558.0,4.77999085]
[1750408278763,0.21894477,2558.4,2558.1,3.90915132]
[1750408279176,0.21894477,2558.4,2558.2,3.9089302]
[1750408279513,0.21894477,2558.4,2558.3,3.90884571]
[1750408279697,2.06494477,2558.6,2558.3,0.03908355]
[1750408279874,0.21894477,2558.5,2558.3,3.94782312]
[1750408280063,3.90846483,2558.6,2558.1,3.95426929]
[1750408280393,10.21896236,2558.5,2558.1,3.95426929]
[1750408280558,0.21896236,2558.4,2558.2,3.90899371]
[1750408280758,10.0,2558.6,2558.2,3.90899371]
[1750408280759,0.21902514,2558.5,2558.2,3.90899371]
[1750408280956,0.21902505,2558.4,2558.3,0.0452]
[1750408281159,0.21902463,2558.5,2558.3,0.0452]
[1750408281361,0.21902215,2558.5,2558.2,3.9089285]
[1750408281559,0.21902215,2558.5,2558.1,3.90908539]
[1750408281806,0.21915059,2558.4,2558.1,3.95428539]
[1750408282011,0.21915059,2558.5,2558.1,3.95428539]
[1750408282208,0.58440121,2558.4,2558.1,3.95428539]
[1750408282411,13.9084047,2558.6,2558.2,0.0452]
[1750408282412,0.36525062,2558.3,2558.2,0.0452]
[1750408282917,0.36525062,2558.3,2558.2,3.9540518]
[1750408283214,0.36537869,2558.3,2558.2,3.9540518]
[1750408283788,0.36537869,2558.3,2557.9,3.90942891]
[1750408283789,0.58467178,2558.3,2557.9,3.90942891]
[1750408283996,0.58467178,2558.2,2558.0,3.95436128]
[1750408284193,0.3654457,2558.1,2557.9,3.90936011]
[1750408284510,0.3654457,2558.0,2557.9,3.90936011]
[1750408284710,0.3654457,2558.1,2558.0,3.90930414]
[1750408285038,0.21927877,2558.3,2558.2,3.90899851]
[1750408285039,0.58459986,2558.3,2558.2,3.90899851]
[1750408285235,0.58459986,2558.6,2558.3,3.90875743]
[1750408285394,0.36532109,2558.5,2558.2,3.90891462]
[1750408285594,0.36532109,2558.4,2558.3,3.90884571]
[1750408286838,0.36531406,2558.4,2558.3,3.90884571]
[1750408287037,0.36531406,2558.4,2558.2,3.90890996]
[1750408287235,0.36531356,2558.3,2558.2,3.90890996]
[1750408287606,0.58446243,2558.5,2558.4,3.90869293]
[1750408287944,10.0,2559.2,2558.8,3.90800904]
[1750408288146,4.49211682,2559.1,2558.3,0.909]
[1750408288317,3.90792918,2558.9,2558.0,3.90930414]
[1750408288505,0.58440127,2558.8,2558.4,3.90861511]
[1750408288856,0.58480707,2558.7,2558.5,3.9085167]
[1750408289057,0.36550442,2558.6,2558.5,3.9085167]
[1750408289207,0.21929348,2558.8,2558.5,3.9085167]
[1750408289543,0.21929348,2558.8,2558.7,3.90823465]
[1750408289741,0.58477038,2558.8,2558.7,3.90823465]
[1750408290041,0.3654769,2558.8,2558.7,4.86913465]
[1750408290245,0.21925771,2559.0,2558.9,3.90786155]
[1750408290439,0.5846871,2559.0,2558.9,3.90786155]
[1750408290740,0.58469296,2559.0,2558.8,3.90800657]
[1750408290919,0.36543263,2558.9,2558.8,3.90808191]
[1750408291321,10.0,2559.1,2558.8,3.90800545]
[1750408291523,0.58506177,2559.0,2558.9,3.90792918]
[1750408292246,0.5850613,2559.0,2558.8,3.90800041]
[1750408292542,0.5850613,2558.9,2558.8,3.95328191]
[1750408292748,0.36566333,2558.9,2558.8,3.95328191]
[1750408292945,0.58501835,2558.9,2558.8,3.95328191]
[1750408293148,0.36566333,2558.9,2558.8,3.95328191]
[1750408293312,0.36556217,2558.9,2558.8,3.95320698]
[1750408294113,0.36556133,2558.9,2558.8,3.95320698]
[1750408294310,0.58489822,2558.9,2558.8,3.95320698]
[1750408294658,0.36556133,2558.9,2558.7,3.90816483]
[1750408294947,0.36556133,2558.8,2558.7,3.90816483]
[1750408295517,0.36556133,2558.8,2558.5,3.90844154]
[1750408295713,0.36556133,2558.7,2558.6,3.90838739]
[1750408296650,0.36552573,2558.7,2558.5,0.03907859]
[1750408296812,0.21931544,2559.1,2558.8,3.90794366]
[1750408297114,22.39532624,2559.3,2558.9,3.90792918]
[1750408297314,0.58480285,2559.2,2558.9,3.90792918]
[1750408297511,0.58480285,2559.1,2558.9,3.90792918]
[1750408297756,0.36550178,2559.0,2558.9,4.76762918]
[1750408297910,0.36550178,2559.0,2558.9,5.63519888]
[1750408298308,0.36550178,2559.3,2559.2,3.90747108]
[1750408299109,0.21927402,2559.6,2559.3,3.90725402]
[1750408299314,0.36508595,2559.5,2559.3,3.90725402]
[1750408299539,0.36508595,2559.4,2559.3,3.90725402]
[1750408299935,0.9209,2559.7,2559.6,3.90686044]
[1750408300140,0.58399635,2559.7,2559.6,3.95206044]
[1750408300347,0.36499668,2559.7,2559.6,3.95206044]
[1750408301344,0.36499668,2559.7,2559.6,3.99112115]
[1750408301517,0.36499668,2559.7,2559.6,4.86533144]
[1750408301717,0.58399531,2559.9,2559.8,3.90655519]
[1750408301975,0.1,2560.0,2559.9,3.95160259]
[1750408302319,0.46434982,2560.0,2559.9,3.95160259]
[1750408302544,0.46433979,2560.0,2559.6,0.844]
[1750408302748,0.9878,2560.0,2559.6,0.0452]
[1750408302949,0.21860633,2559.9,2559.7,3.90669199]
[1750408303185,0.58287016,2559.9,2559.7,3.90669199]
[1750408303648,0.36426178,2559.9,2559.8,3.90655519]
[1750408303848,0.36426178,2559.9,2559.8,4.79805519]
[1750408304162,0.1,2560.0,2559.9,3.95160259]
[1750408307202,0.1,2560.0,2559.9,3.90640259]
[1750408307948,0.1,2560.0,2559.8,3.90648819]
[1750408308446,0.1,2560.0,2559.9,3.90640259]
[1750408309352,0.1,2560.0,2559.9,3.94546001]
[1750408309684,0.1,2560.0,2559.9,5.94516061]
[1750408309886,0.1,2560.0,2559.9,6.78290319]
[1750408313298,0.1,2560.0,2559.9,6.82195358]
[1750408314066,0.1,2560.0,2559.9,6.78290319]
[1750408314403,0.1,2560.0,2559.9,13.41090319]
[1750408316105,0.1,2560.0,2559.9,13.41190319]
[1750408316606,0.1,2560.0,2559.9,12.86190319]
[1750408319878,0.1,2560.0,2559.9,12.90710319]
[1750408323044,0.58231235,2559.6,2559.3,3.90723026]
[1750408323342,10.58231235,2559.6,2559.2,3.90738357]
[1750408323491,3.90732022,2559.3,2558.8,3.90808191]
[1750408323680,0.36394522,2559.2,2558.6,7.48]
[1750408323886,0.36394522,2559.2,2559.0,3.90767903]
[1750408324118,0.36394522,2559.2,2558.9,3.90784576]
[1750408324321,0.36394522,2559.2,2558.8,3.90793147]
[1750408324322,0.8637,2559.2,2558.8,3.90797743]
[1750408324640,0.64499034,2559.1,2558.8,3.90806705]
[1750408324843,0.64499034,2559.1,2558.5,10.52848557]
[1750408325044,0.0624,2558.9,2558.6,3.90828553]
[1750408325196,0.8663,2558.8,2558.7,3.90823211]
[1750408325391,1.23044951,2558.8,2558.7,3.90823211]
[1750408325788,0.36414951,2558.8,2558.7,3.90823211]
[1750408325987,0.36414951,2559.2,2559.1,3.90762377]
[1750408326315,0.58261831,2559.5,2559.4,3.90716574]
[1750408326512,0.58261831,2559.5,2559.3,3.90722257]
[1750408326715,0.36414951,2559.4,2559.3,3.90722257]
[1750408326895,0.36446972,2559.4,2559.3,3.90722257]
[1750408327095,0.36446939,2559.4,2559.3,3.90722257]
[1750408327494,0.36437904,2559.4,2559.3,3.90722257]
[1750408327933,0.36437904,2559.4,2558.7,8.29605961]
[1750408328242,0.36437904,2559.4,2558.6,3.90829336]
[1750408328243,0.8519,2559.2,2558.5,0.896]
[1750408328391,0.36439272,2559.1,2558.7,3.90816529]
[1750408328587,0.36439272,2559.1,2558.7,3.90813652]
[1750408328588,0.58303772,2559.1,2558.7,3.90813652]
[1750408328793,0.218645,2559.1,2558.5,0.896]
[1750408329011,0.36445331,2559.0,2558.5,1.6477]
[1750408329249,0.58309831,2559.1,2558.7,3.90810921]
[1750408329535,0.36445331,2559.0,2558.8,3.90802927]
[1750408329732,0.36445619,2559.0,2558.8,3.90802927]
[1750408329898,0.218645,2559.1,2558.9,3.90792327]
[1750408329899,0.58310119,2559.1,2558.9,3.90792327]
[1750408330431,0.58310119,2559.1,2558.9,3.90784557]
[1750408330800,0.36445619,2559.1,2558.9,3.90784557]
[1750408330998,2.6559,2559.2,2558.9,3.90784557]
[1750408331194,0.58284636,2559.1,2558.8,3.90800056]
[1750408331391,10.58284636,2559.1,2558.7,3.95339204]
[1750408331595,0.36427899,2559.0,2558.7,3.95339204]
[1750408331792,0.36427899,2559.0,2558.7,3.90819204]
[1750408332358,0.36417413,2559.0,2558.6,3.90833934]
[1750408332672,0.58268035,2559.0,2558.6,3.90832571]
[1750408332935,0.36418809,2559.0,2558.6,3.90832571]
[1750408333110,0.58270013,2559.0,2558.6,3.90832571]
[1750408333313,4.49048701,2559.0,2558.6,3.90832571]
[1750408333507,10.0,2559.1,2558.6,3.90832571]
[1750408333508,0.36418889,2558.9,2558.7,3.90821024]
[1750408333712,0.36418889,2559.0,2558.5,3.95368559]
[1750408333932,0.36400043,2559.0,2558.5,3.90848559]
[1750408334315,0.5824013,2559.0,2558.4,0.0452]
[1750408334541,4.49025897,2559.0,2558.4,3.95388941]
[1750408334739,0.8784,2558.7,2558.1,0.8396]
[1750408335038,0.8784,2558.7,2558.0,0.0452]
[1750408335039,2.16801187,2558.6,2557.9,4.74899555]
[1750408335237,1.24241187,2558.5,2558.0,3.90930254]
[1750408335414,0.36401187,2558.4,2557.8,4.4561892]
[1750408335609,0.36401187,2558.4,2558.1,3.90914431]
[1750408335811,0.8784,2558.8,2558.3,3.90884571]
[1750408336113,1.805,2559.0,2558.5,3.90852196]
[1750408336114,0.36392738,2558.7,2558.5,3.90852196]
[1750408336435,0.58228015,2558.8,2558.4,3.90862896]
[1750408336621,0.36392738,2558.8,2558.5,0.03907832]
[1750408336801,0.36366992,2558.9,2558.6,3.90829241]
[1750408337305,10.36366992,2558.9,2558.4,4.77433265]
[1750408337514,0.36366992,2558.8,2557.9,0.9094]
[1750408337702,4.80604306,2558.7,2558.2,3.90890879]
[1750408337896,0.36366992,2558.6,2558.3,0.03908418]
[1750408338239,15.71263618,2559.1,2558.7,3.90809783]
[1750408338534,0.36354323,2559.0,2558.7,3.90822131]
[1750408338740,0.36354323,2559.0,2558.4,0.9094]
[1750408339037,3.90774302,2559.1,2558.6,3.90827912]
[1750408339234,0.36354256,2559.0,2558.6,3.90827912]
[1750408339735,2.16854453,2559.0,2558.6,3.9082532]
[1750408339915,0.36354453,2558.9,2558.7,3.90809672]
[1750408341545,0.36354453,2558.9,2558.7,3.95329672]
[1750408341747,0.36354453,2558.9,2558.8,3.99235914]
[1750408341930,0.36345579,2559.0,2558.9,3.95312918]
[1750408342129,0.58152255,2559.3,2559.0,3.90776617]
[1750408342335,0.9031,2559.4,2558.9,3.95304172]
[1750408342514,0.58150482,2559.3,2558.9,3.95304172]
[1750408342708,0.58150482,2559.3,2559.0,3.90776777]
[1750408342913,0.58150482,2559.3,2558.9,3.95311686]
[1750408343112,10.58150482,2559.3,2558.9,3.95302346]
[1750408343326,10.0,2559.3,2558.9,3.95302346]
[1750408343608,0.36358167,2559.2,2558.9,3.95306879]
[1750408343811,0.3635808,2559.2,2558.9,3.95304926]
[1750408344008,0.3635808,2559.2,2558.9,0.0452]
[1750408344212,0.36358806,2559.2,2558.9,0.0452]
[1750408344446,0.36358806,2559.2,2558.9,3.95312754]
[1750408344645,10.0,2559.3,2558.9,3.95312754]
[1750408344809,0.36358456,2559.2,2558.9,3.95304742]
[1750408345240,10.0,2559.3,2559.0,3.90776774]
[1750408345543,0.58196586,2559.2,2559.0,3.90772803]
[1750408345745,0.58235429,2559.2,2559.0,3.90775314]
[1750408346043,0.58235429,2559.2,2558.6,0.8525]
[1750408346243,0.36397142,2559.3,2559.1,3.90762377]
[1750408346467,0.58230768,2559.4,2559.2,0.03906976]
[1750408346647,0.3639423,2559.3,2559.2,3.94654084]
[1750408346943,0.36453565,2559.3,2559.2,0.03906976]
[1750408347109,0.36453565,2559.4,2559.1,3.9075401]
[1750408347311,0.36453565,2559.3,2558.9,3.90785494]
[1750408347555,0.36455311,2559.2,2558.6,0.8525]
[1750408347779,0.36455279,2559.1,2558.9,3.90791262]
[1750408347924,0.58291817,2559.3,2558.9,3.90780091]
[1750408348123,0.36456663,2559.2,2559.0,3.90776875]
[1750408348359,0.36456663,2559.1,2559.0,3.90776875]
[1750408348572,0.36456663,2559.2,2559.0,3.90776875]
[1750408348866,0.58439912,2559.1,2558.9,3.9078627]
[1750408349025,0.36565871,2559.0,2558.9,3.90792918]
[1750408350962,0.21939416,2559.2,2559.0,3.90770997]
[1750408351123,0.58505097,2559.1,2559.0,3.90770997]
[1750408351329,0.36565681,2559.1,2559.0,3.90770997]
[1750408351656,1.789,2559.4,2559.1,3.90760885]
[1750408351657,0.21939416,2559.2,2559.1,3.90760885]
[1750408351826,0.58544038,2559.2,2559.1,3.90760885]
[1750408352027,0.21954006,2559.2,2559.1,3.90760885]
[1750408352360,0.58543074,2559.2,2559.1,4.82280885]
[1750408352545,0.36589371,2559.2,2559.1,3.90762377]
[1750408352859,0.36589371,2559.2,2559.0,3.90765141]
[1750408353050,0.36589371,2559.1,2559.0,3.90765141]
[1750408353571,0.58543847,2559.1,2558.5,0.9152]
[1750408353773,0.21953703,2559.0,2558.9,3.90792121]
[1750408354000,0.8397,2558.9,2558.0,0.9152]
[1750408354282,0.58551064,2558.8,2558.6,3.90823636]
[1750408354573,0.21956958,2558.7,2558.6,3.90823636]
[1750408354773,0.36593501,2558.7,2558.6,3.90823636]
[1750408355061,0.585473,2558.7,2558.6,3.90823636]
[1750408355277,0.36593501,2558.7,2558.6,3.90823636]
[1750408355484,0.58543449,2558.7,2558.6,3.90823636]
[1750408355646,0.3658965,2558.7,2558.6,3.90823636]
[1750408356553,0.36587321,2558.7,2558.6,3.90823636]
[1750408356796,0.21953058,2558.8,2558.7,3.90820118]
[1750408356951,0.36588442,2558.8,2558.6,3.90829237]
[1750408357152,0.36588955,2558.7,2558.6,3.90829237]
[1750408357657,0.36588955,2558.7,2558.2,0.9195]
[1750408357973,0.36596816,2558.6,2558.4,3.9085806]
[1750408358148,0.36596816,2558.5,2558.0,0.8612]
[1750408358345,1.20346816,2558.4,2558.3,3.90884571]
[1750408358582,1.42304906,2558.4,2558.2,3.90891496]
[1750408358788,0.58554906,2558.3,2558.2,3.90891496]
[1750408359816,0.36596816,2558.3,2558.2,3.90891496]
[1750408359990,0.853,2558.6,2558.4,3.90869293]
[1750408360327,0.3660095,2558.5,2558.4,4.69041783]
[1750408360625,0.21957516,2559.1,2559.0,3.90777647]
[1750408360914,0.58550677,2559.1,2559.0,3.90777647]
[1750408361118,0.36593161,2559.1,2559.0,3.90777647]
[1750408361614,0.36593161,2559.1,2558.8,0.9129]
[1750408361615,0.36588133,2559.1,2558.8,0.9129]
[1750408361816,0.36588133,2559.0,2558.9,3.90792918]
[1750408362315,0.2195362,2559.3,2559.1,3.90749821]
[1750408362463,0.58542964,2559.2,2559.1,3.90762377]
[1750408362668,0.36589344,2559.2,2559.1,3.90762377]
[1750408363315,0.58542975,2559.2,2559.1,3.90762377]
[1750408363501,0.36583419,2559.2,2559.1,3.90762377]
[1750408363826,0.36583419,2559.2,2559.0,3.90767185]
[1750408364036,0.36583734,2559.1,2559.0,3.90767185]
[1750408364231,0.58533901,2559.1,2558.9,3.90788137]
[1750408364439,0.36583734,2559.0,2558.9,3.90788137]
[1750408365194,0.2194954,2559.3,2559.1,3.90755397]
[1750408365406,0.3658286,2559.2,2559.0,3.90770362]
[1750408365629,0.3658286,2559.1,2559.0,3.90770362]
[1750408365820,0.3658286,2559.1,2558.9,3.90785898]
[1750408366014,0.36583495,2559.0,2558.9,3.90785898]
[1750408366220,0.36583501,2559.0,2558.9,3.90785898]
[1750408366397,0.3658344,2559.0,2558.9,3.90785898]
[1750408367952,0.36595887,2559.0,2558.9,3.90785898]
[1750408368260,0.9803,2558.9,2557.9,0.8995]
[1750408368457,0.58553987,2558.8,2558.0,0.53556892]
[1750408368603,0.58555927,2558.7,2558.2,3.90888714]
[1750408368805,0.36587365,2558.6,2558.3,3.90873496]
[1750408369005,0.36587365,2558.5,2558.3,3.90873496]
[1750408369359,0.36587365,2558.4,2558.3,3.90873496]
[1750408370140,4.12760916,2558.8,2558.4,3.90867975]
[1750408370354,0.58537246,2558.7,2558.3,3.90877205]
[1750408370562,0.36585779,2558.6,2558.3,3.90877205]
[1750408370762,0.36585779,2558.5,2558.4,3.90866378]
[1750408371070,0.36585779,2558.5,2558.2,3.90892432]
[1750408371071,0.36586018,2558.5,2558.2,3.90892432]
[1750408371215,0.36587364,2558.4,2558.3,3.9087541]
[1750408372252,0.36587364,2558.4,2558.3,3.90884571]
[1750408373965,0.2193778,2558.6,2558.4,3.90863618]
[1750408374251,0.36563024,2558.5,2558.4,3.90863618]
[1750408374831,0.36555403,2558.5,2558.4,3.90863618]
[1750408375658,0.36555403,2558.5,2558.4,4.82821987]
[1750408376285,0.36555403,2558.5,2558.4,5.70192533]
[1750408376589,0.36555403,2558.5,2558.4,5.70191631]
[1750408376730,0.36555403,2558.5,2558.4,6.25191631]
[1750408377361,0.21937814,2559.2,2559.1,3.90762377]
[1750408377574,0.36552452,2559.2,2559.1,3.27213492]
[1750408377718,0.21937814,2559.3,2559.1,3.27213492]
[1750408378049,0.3655171,2559.2,2559.1,3.27213492]
[1750408378717,0.3655171,2559.2,2559.0,3.90771276]
[1750408378918,0.36552201,2559.1,2558.6,6.574]
[1750408379240,0.36552201,2559.0,2558.9,3.90786652]
[1750408379442,0.36553976,2559.0,2558.9,3.90786652]
[1750408379849,0.36553976,2559.0,2558.8,3.90799466]
[1750408380057,0.21931052,2559.1,2558.2,0.892]
[1750408380058,1.26913976,2558.9,2558.2,0.892]
[1750408380353,0.5848836,2558.8,2558.6,3.90825064]
[1750408380514,0.36553976,2558.7,2558.6,3.90825064]
[1750408380914,0.3655692,2558.7,2558.6,3.90825064]
[1750408381663,0.3655692,2558.7,2558.6,4.77465064]
[1750408382181,0.21935,2559.1,2559.0,3.90777647]
[1750408382382,0.5849388,2559.1,2559.0,3.90777647]
[1750408382560,0.5849388,2559.1,2558.9,3.90792918]
[1750408382769,0.5849388,2559.1,2558.8,3.90793729]
[1750408382770,0.3655888,2559.0,2558.8,3.90799914]
[1750408382935,0.21935,2559.1,2558.8,3.90799914]
[1750408382936,0.3655888,2558.9,2558.8,3.90799914]
[1750408383479,0.21935,2559.1,2558.7,3.90822402]
[1750408383480,0.21935,2559.1,2558.9,3.90789578]
[1750408383763,0.36559751,2559.0,2558.9,3.90789578]
[1750408384349,0.36559751,2559.0,2558.8,3.90801947]
[1750408384547,0.36559751,2558.9,2558.8,3.90808191]
[1750408384875,10.0,2559.3,2558.9,3.90791625]
[1750408385080,0.58493528,2559.2,2558.9,3.90791625]
[1750408385389,0.36558497,2559.1,2558.8,3.90803155]
[1750408385682,0.21934696,2559.2,2558.9,3.90792918]
[1750408385858,0.21934696,2559.2,2559.0,3.90777452]
[1750408386181,0.21934696,2559.2,2559.1,3.94669751]
[1750408386381,0.21934696,2559.5,2559.4,3.90716574]
[1750408386599,0.31934696,2560.0,2559.9,3.90640259]
[1750408386800,0.1,2560.0,2559.9,3.90640259]
[1750408388444,0.9373,2560.0,2559.6,3.90678725]
[1750408388754,0.9373,2560.0,2559.8,3.90648363]
[1750408388755,0.1,2560.0,2559.8,3.90648363]
[1750408389168,0.1,2560.0,2559.8,3.90644725]
[1750408389760,0.8855,2559.9,2558.8,0.8392]
[1750408390121,10.2187553,2559.8,2559.3,3.90718058]
[1750408390278,0.2187553,2559.7,2559.4,3.90715599]
[1750408390608,0.2186838,2559.7,2559.3,3.90722991]
[1750408390765,0.2186838,2559.7,2559.4,3.9071436]
[1750408391099,0.2186838,2559.8,2559.5,3.90691383]
[1750408391399,0.2186838,2559.8,2559.5,3.90694159]
[1750408392299,0.2186838,2559.8,2559.4,4.74629031]
[1750408392592,0.2186838,2559.8,2559.5,3.90700275]
[1750408392792,0.2186838,2559.8,2559.4,4.74629684]
[1750408392998,10.0,2559.7,2559.4,3.90709684]
[1750408393164,0.2186838,2559.6,2559.3,3.90725301]
[1750408393499,10.0,2559.7,2559.3,3.90725301]
[1750408393664,10.0,2559.7,2559.4,3.90715451]
[1750408394270,10.0,2559.7,2559.3,3.9072529]
[1750408396010,0.21863288,2559.6,2559.3,3.9072529]
[1750408396424,10.0,2559.7,2559.3,3.9072529]
[1750408396595,3.90674308,2559.7,2559.3,3.9072529]
[1750408396826,4.79196599,2559.9,2559.3,3.9072529]
[1750408397026,10.8447,2559.7,2558.6,0.8866]
[1750408397227,3.90717448,2559.4,2559.0,3.90769274]
[1750408397526,10.36432012,2559.3,2559.1,0.03907037]
[1750408397726,1.42765185,2559.2,2558.9,0.03907096]
[1750408397948,0.36434491,2559.1,2558.9,0.03907096]
[1750408398125,0.36434491,2559.0,2558.9,0.03907096]
[1750408398327,10.8447,2559.2,2558.9,0.03907096]
[1750408398328,0.36434491,2559.1,2558.9,0.03907096]
[1750408398557,0.36434491,2559.1,2558.2,0.65730168]
[1750408398558,7.78404491,2559.0,2557.8,5.2932892]
[1750408398703,0.5829601,2558.9,2558.8,3.90808191]
[1750408398900,0.36434491,2559.2,2558.8,3.90808191]
[1750408399229,0.36438722,2559.1,2558.7,3.90814958]
[1750408399445,14.77702238,2559.3,2558.7,3.90814958]
[1750408399446,0.36438722,2559.0,2558.7,3.90814958]
[1750408399678,0.36438722,2558.9,2558.8,3.90803944]
[1750408399804,0.36438722,2559.1,2558.8,3.90803944]
[1750408400143,0.36438722,2559.0,2558.7,3.90816534]
[1750408400468,0.36447996,2559.1,2558.7,3.90816534]
[1750408400649,10.36447996,2559.0,2558.3,0.8371]
[1750408400795,10.0606,2558.8,2558.3,3.90876666]
[1750408400993,10.0606,2558.8,2558.1,0.9229]
[1750408400994,0.58317151,2558.7,2558.1,0.9229]
[1750408401201,0.58317151,2558.7,2557.9,7.20932892]
[1750408401202,0.36447996,2558.6,2558.0,3.90920819]
[1750408401430,0.36447996,2558.5,2558.0,1.5146179]
[1750408401615,0.36457543,2558.4,2558.0,3.90927371]
[1750408401798,0.36473098,2558.3,2557.9,3.90938254]
[1750408402000,0.36435285,2558.2,2557.7,3.9097079]
[1750408402232,0.36435285,2558.1,2557.8,3.90952825]
[1750408402428,0.58319144,2558.2,2557.9,3.9094296]
[1750408402609,0.58319144,2558.3,2557.9,3.9094296]
[1750408402814,0.36435285,2558.2,2557.9,3.9094296]
[1750408403046,0.21883859,2558.3,2557.9,3.9094296]
[1750408403257,0.36435355,2558.2,2558.1,3.90915132]
[1750408403554,0.36435009,2558.2,2557.9,3.90938256]
[1750408403906,0.36435009,2558.2,2557.8,3.90957625]
[1750408404096,0.36435009,2558.1,2558.0,3.90929935]
[1750408404296,0.36435009,2558.2,2557.3,0.892]
[1750408404501,0.36435009,2558.1,2557.3,0.892]
[1750408404701,0.36435009,2558.0,2557.7,3.90968574]
[1750408404950,0.36435009,2557.9,2557.8,3.90960982]
[1750408405233,0.58296117,2558.1,2557.8,3.90960982]
[1750408405431,0.58273922,2558.1,2557.7,3.90971646]
[1750408405940,0.36397591,2558.1,2557.8,3.9096053]
[1750408406341,0.36397591,2558.1,2557.9,3.90945279]
[1750408406513,0.36397547,2558.1,2557.8,3.90956815]
[1750408406715,0.36397547,2558.1,2557.7,3.90969504]
[1750408406911,2.19497547,2558.1,2557.8,3.90953144]
[1750408407103,0.36397547,2558.0,2557.9,3.90945697]
[1750408407518,0.36397547,2558.1,2557.7,3.90973389]
[1750408407703,0.36397547,2558.1,2557.8,3.90953701]
[1750408407904,0.36397547,2558.1,2557.7,3.90974346]
[1750408408099,0.8877,2558.0,2557.8,3.90953651]
[1750408408516,10.0,2558.2,2557.5,0.55]
[1750408408701,10.0,2558.2,2558.1,3.90915132]
[1750408408905,10.36343027,2558.2,2558.1,3.90915132]
[1750408409400,0.36343027,2558.2,2558.1,3.90915132]
[1750408409801,0.36343027,2558.2,2558.0,3.90922255]
[1750408410037,0.36343027,2558.3,2558.0,3.90922255]
[1750408410254,0.36343372,2558.3,2558.0,3.90922255]
[1750408410454,11.831,2558.4,2558.1,3.90914354]
[1750408410755,0.36343386,2558.3,2558.2,3.90899851]
[1750408410918,0.36343386,2558.3,2558.0,3.9092598]
[1750408411251,0.36343386,2558.3,2557.6,0.44601958]
[1750408411554,0.36343386,2558.3,2558.1,3.90907532]
[1750408411879,0.3632121,2558.3,2558.2,3.90899851]
[1750408412000,0.36320878,2558.3,2558.2,3.90899851]
[1750408412201,0.36320768,2558.3,2558.1,3.90906277]
[1750408412548,0.36320811,2558.3,2557.6,0.44601958]
[1750408412850,0.36320811,2558.3,2557.9,3.90930622]
[1750408413449,0.36322277,2558.3,2557.9,3.90930622]
[1750408413652,0.36322264,2558.3,2557.9,3.90930622]
[1750408413953,0.36322264,2558.3,2558.0,3.90928657]
[1750408414159,0.36322264,2558.3,2558.1,3.90903871]
[1750408414452,2.19405905,2558.3,2558.0,3.90923895]
[1750408414652,0.36306099,2558.2,2558.0,3.90923895]
[1750408414955,0.36306099,2558.2,2557.9,3.90930448]
[1750408415103,0.36306041,2558.2,2558.0,3.90927747]
[1750408415803,0.36306041,2558.2,2557.9,3.90939296]
[1750408416008,0.8649,2558.1,2557.9,3.90939296]
[1750408416204,0.8649,2558.1,2557.8,3.9094727]
[1750408416407,0.8649,2558.1,2557.9,3.90935974]
[1750408417039,0.855096,2558.1,2557.9,3.90935974]
[1750408417406,0.855096,2558.1,2557.8,3.9095248]
[1750408417601,0.36354713,2558.0,2557.8,3.9095248]
[1750408417842,0.36354713,2558.0,2557.9,3.90945697]
[1750408418168,0.855096,2558.1,2558.0,3.90930414]
[1750408418308,0.03907112,2558.9,2557.9,3.90945697]
[1750408418655,0.58158632,2558.9,2558.1,0.8944]
[1750408418852,10.36348331,2558.9,2558.8,3.90808191]
[1750408419054,0.36345366,2558.9,2558.7,3.90816711]
[1750408419205,10.36345366,2558.9,2558.7,3.90816711]
[1750408419407,0.36345366,2558.8,2558.6,3.90829879]
[1750408419610,0.36345366,2558.8,2558.1,0.8944]
[1750408419839,0.36345366,2558.8,2558.5,3.90846145]
[1750408420048,1.26192583,2558.8,2558.5,3.90846145]
[1750408420358,0.36362583,2558.7,2558.5,3.90846145]
[1750408420513,0.36384014,2558.7,2558.5,3.90846145]
[1750408420714,0.36384754,2558.7,2558.3,3.90875887]
[1750408421039,0.36384754,2558.7,2558.4,3.90869189]
[1750408421361,0.36384754,2558.7,2558.3,3.90883737]
[1750408421516,0.36384754,2558.7,2558.4,3.90860862]
[1750408421709,0.36384754,2558.7,2558.5,3.90850422]
[1750408421909,0.8983,2558.8,2558.4,3.90860853]
[1750408422112,0.58224903,2558.7,2558.4,3.90860853]
[1750408422310,9.03824903,2558.7,2558.4,3.90860853]
[1750408422507,0.36385075,2558.6,2558.3,3.90874045]
[1750408423057,0.582482,2558.6,2558.3,3.90874045]
[1750408423363,0.582482,2558.6,2558.4,3.90866014]
[1750408423520,0.58301659,2558.6,2558.4,3.90866014]
[1750408423725,0.58301659,2558.6,2558.5,3.90854016]
[1750408423926,0.58301608,2558.6,2558.5,3.90854016]
[1750408424620,0.58301608,2558.6,2558.4,3.90860476]